fUSD/lending_fUSD_20251203
["ID","MTS","AMOUNT","RATE_DAILY","PERIOD"]
[395748424,1764720039158,-300.0,9.999e-05,2]
[395748425,1764720039267,-300.0,9.999e-05,2]
[395748426,1764720039379,-1200.0,9.999e-05,2]
[395748427,1764720039490,-150.0,9.999e-05,2]
[395748428,1764720039603,-300.0,9.999e-05,2]
[395748429,1764720039715,-440.70023146,0.0001,2]
[395748430,1764720039827,-500.0,0.0001,2]
[395748431,1764720039937,-500.0,0.0001,2]
[395748432,1764720040050,-500.0,0.0001,2]
[395748433,1764720040159,-500.0,0.0001,2]
[395748434,1764720040270,-200.0,0.0001,2]
[395748435,1764720040380,-67.60953708,0.0001,2]
[395748436,1764720041990,-83.39046292,0.0001,2]
[395748437,1764720045063,-151.0,0.0001,2]
[395748438,1764720045182,-151.0,0.0001,2]
[395748439,1764720045306,-151.0,0.0001,2]
[395748440,1764720045423,-151.0,0.0001,2]
[395748441,1764720045536,-151.0,0.0001,2]
[395748442,1764720045650,-151.0,0.0001,2]
[395748443,1764720045761,-151.0,0.0001,2]
[395748444,1764720045873,-151.0,0.0001,2]
[395748445,1764720045986,-151.0,0.0001,2]
[395748446,1764720046098,-151.0,0.0001,2]
[395748447,1764720046212,-151.0,0.0001,2]
[395748448,1764720046328,-151.0,0.0001,2]
[395748449,1764720046446,-151.0,0.0001,2]
[395748450,1764720046561,-151.0,0.0001,2]
[395748451,1764720046676,-151.0,0.0001,2]
[395748452,1764720046794,-151.0,0.0001,2]
[395748453,1764720046909,-151.0,0.0001,2]
[395748454,1764720047023,-151.0,0.0001,2]
[395748455,1764720047136,-151.0,0.0001,2]
[395748456,1764720047247,-151.0,0.0001,2]
[395748457,1764720047358,-307.73758962,0.0001,2]
[395748458,1764720047471,-500.0,0.0001,2]
[395748459,1764720047597,-500.0,0.0001,2]
[395748460,1764720047709,-500.0,0.0001,2]
[395748461,1764720051540,-5.73758962,0.0001,2]
[395748462,1764720051658,-344.53482076,0.0001,2]
[395748463,1764720052749,-149.72758962,0.0001,2]
[395748464,1764720052849,-500.0,0.0001,2]
[395748465,1764720052949,-500.0,0.0001,2]
[395748466,1764720053049,-500.0,0.0001,2]
[395748467,1764720053153,-500.0,0.0001,2]
[395748468,1764720053262,-542.30702531,0.00010093,2]
[395748469,1764720053372,-1903.86,0.00010201,2]
[395748470,1764720053482,-244.45248175,0.00010246,2]
[395748471,1764720055266,-319.31580664,0.00010246,2]
[395748474,1764720103344,-151.0,0.00010246,2]
[395748475,1764720103454,-300.0,0.00010374,2]
[395748476,1764720103561,-436.25007986,0.00010375,3]
[395748477,1764720103687,-500.0,0.00010375,2]
[395748478,1764720103820,-500.0,0.00010375,2]
[395748479,1764720103946,-500.0,0.00010375,2]
[395748480,1764720104069,-500.0,0.00010375,2]
[395748482,1764720104193,-500.0,0.00010375,2]
[395748483,1764720104312,-500.0,0.00010375,2]
[395748484,1764720104773,-500.0,0.00010375,2]
[395748485,1764720104891,-500.0,0.00010375,2]
[395748486,1764720106643,-151.0,0.00010375,2]
[395748487,1764720106653,-74.50984028,0.00010375,2]
[395748488,1764720107236,-76.49015972,0.00010375,2]
[395748489,1764720107336,-151.0,0.00010375,2]
[395748490,1764720107436,-151.0,0.00010375,2]
[395748491,1764720107546,-500.0,0.00010375,2]
[395748492,1764720107654,-500.0,0.00010375,2]
[395748493,1764720107754,-500.0,0.00010375,2]
[395748494,1764720107862,-500.0,0.00010375,2]
[395748495,1764720107968,-500.0,0.00010375,2]
[395748496,1764720108069,-500.0,0.00010375,2]
[395748497,1764720108181,-500.0,0.00010375,2]
[395748498,1764720108293,-500.0,0.00010375,2]
[395748499,1764720108405,-500.0,0.00010375,2]
[395748500,1764720111199,-243.02968056,0.00010375,2]
[395748501,1764720111842,-151.0,0.00010375,2]
[395748502,1764720111881,-158.43817592,0.00010375,2]
[395748503,1764720113186,-98.53214352,0.00010375,2]
[395748504,1764720113307,-500.0,0.00010375,2]
[395748505,1764720113422,-500.0,0.00010375,2]
[395748506,1764720113535,-500.0,0.00010375,2]
[395748507,1764720113651,-500.0,0.00010375,2]
[395748508,1764720113767,-500.0,0.00010375,2]
[395748509,1764720113879,-500.0,0.00010375,2]
[395748510,1764720113994,-500.0,0.00010375,2]
[395748511,1764720114104,-500.0,0.00010375,2]
[395748512,1764720114216,-500.0,0.00010375,2]
[395748513,1764720114327,-302.94571296,0.00010375,2]
[395748514,1764720115656,-197.05428704,0.00010375,2]
[395748515,1764720115691,-77.38893884,0.00010375,2]
[395748516,1764720115984,-197.05428704,0.00010375,2]
[395748518,1764720149381,-216.4836,0.00010375,2]
[395748519,1764720149503,-225.55677412,0.00010375,2]
[395748520,1764720149631,-500.0,0.00010375,2]
[395748521,1764720149743,-500.0,0.00010375,2]
[395748522,1764720149862,-500.0,0.00010375,2]
[395748523,1764720149976,-500.0,0.00010375,2]
[395748524,1764720150072,-500.0,0.00010375,2]
[395748525,1764720150172,-500.0,0.00010375,2]
[395748527,1764720150279,-500.0,0.00010375,2]
[395748528,1764720150385,-500.0,0.00010375,2]
[395748529,1764720150486,-160.98974541,0.00010375,2]
[395748530,1764720150593,-293.94976094,0.00010375,2]
[395748531,1764720151797,-206.05023906,0.00010375,2]
[395748532,1764720151916,-500.0,0.00010375,2]
[395748533,1764720152043,-500.0,0.00010375,2]
[395748534,1764720152170,-256.29951781,0.00010375,2]
[395748535,1764720152657,-500.0,0.00010375,2]
[395748536,1764720152763,-500.0,0.00010375,2]
[395748537,1764720152868,-500.0,0.00010375,2]
[395748538,1764720152973,-500.0,0.00010375,2]
[395748539,1764720153087,-550.0,0.00010375,2]
[395748540,1764720153203,-500.0,0.00010375,2]
[395748541,1764720153323,-475.31048626,0.00010375,2]
[395748542,1764720153820,-1000.0,0.00010355,2]
[395748543,1764720153935,-24.68951374,0.00010375,2]
[395748544,1764720154046,-500.0,0.00010375,2]
[395748545,1764720154172,-500.0,0.00010375,2]
[395748546,1764720154293,-500.0,0.00010375,2]
[395748547,1764720154411,-500.0,0.00010375,2]
[395748548,1764720154520,-500.0,0.00010375,2]
[395748549,1764720154634,-500.0,0.00010375,2]
[395748550,1764720154748,-500.0,0.00010375,2]
[395748551,1764720154863,-450.63097252,0.00010375,2]
[395748552,1764720155282,-159.74,0.00010099,2]
[395748553,1764720155395,-49.36902748,0.00010375,2]
[395748554,1764720155524,-200.0,0.00010375,2]
[395748555,1764720155644,-500.0,0.00010375,2]
[395748556,1764720155765,-500.0,0.00010375,2]
[395748557,1764720155886,-500.0,0.00010375,2]
[395748558,1764720156008,-500.0,0.00010375,2]
[395748559,1764720156128,-500.0,0.00010375,2]
[395748560,1764720156249,-500.0,0.00010375,2]
[395748561,1764720156369,-500.0,0.00010375,2]
[395748562,1764720156492,-500.0,0.00010375,2]
[395748563,1764720156619,-500.0,0.00010375,2]
[395748564,1764720162615,-298.40689254,0.00010375,2]
[395748565,1764720164342,-201.59310746,0.00010375,2]
[395748566,1764720164454,-500.0,0.00010375,2]
[395748567,1764720164563,-500.0,0.00010375,2]
[395748568,1764720164684,-500.0,0.00010375,2]
[395748569,1764720164804,-500.0,0.00010375,2]
[395748570,1764720164911,-500.0,0.00010375,2]
[395748571,1764720165020,-500.0,0.00010375,2]
[395748572,1764720165129,-500.0,0.00010375,2]
[395748573,1764720165232,-500.0,0.00010375,2]
[395748574,1764720165331,-500.0,0.00010375,2]
[395748575,1764720165451,-96.82378508,0.00010375,2]
[395748576,1764720167946,-403.17621492,0.00010375,2]
[395748577,1764720168055,-500.0,0.00010375,2]
[395748578,1764720168172,-500.0,0.00010375,2]
[395748579,1764720168283,-244.6414388,0.00010375,2]
[395748580,1764720168396,-500.0,0.00010375,2]
[395748581,1764720168508,-500.0,0.00010375,2]
[395748582,1764720168620,-500.0,0.00010375,2]
[395748583,1764720168728,-500.0,0.00010375,2]
[395748584,1764720168840,-500.0,0.00010375,2]
[395748585,1764720168946,-500.0,0.00010375,2]
[395748586,1764720169053,-204.37469256,0.00010375,2]
[395748587,1764720169228,-295.62530744,0.00010375,2]
[395748588,1764720169344,-500.0,0.00010375,2]
[395748589,1764720170584,-516.81828412,0.00010375,2]
[395748590,1764720171255,-310.81194995,0.00010376,2]
[395748592,1764720176061,-226.78627996,0.00010376,2]
[395748593,1764720176189,-500.0,0.00010376,2]
[395748594,1764720176286,-8408.75938512,0.00010376,2]
[395748595,1764720176727,-316.2173352,0.00010275,2]
[395748596,1764720176736,-200.60094892,0.00010376,2]
[395748597,1764720176827,-8966.37343176,0.00010376,2]
[395748598,1764720177661,-10000.01,0.00010376,2]
[395748599,1764720177892,-10000.01,0.00010376,2]
[395748600,1764720177994,-10000.01,0.00010376,2]
[395748601,1764720178103,-10000.01,0.00010376,2]
[395748602,1764720178226,-245.41020069,0.00010376,2]
[395748603,1764720178341,-10000.01,0.00010376,2]
[395748604,1764720178471,-10000.01,0.00010376,2]
[395748605,1764720179567,-316.2173352,0.00010312,2]
[395748606,1764720180445,-9367.5753296,0.00010376,2]
[395748607,1764720180557,-10000.01,0.00010376,2]
[395748608,1764720180654,-10000.01,0.00010376,2]
[395748609,1764720180759,-10000.01,0.00010376,2]
[395748610,1764720180808,-301.89959652,0.00010376,2]
[395748611,1764720180931,-10000.01,0.00010376,2]
[395748612,1764720181030,-10000.01,0.00010376,2]
[395748622,1764720393761,-2218.15,9.67e-05,2]
[395748623,1764720393863,-477.24,9.809e-05,2]
[395748624,1764720394209,-4609.23,9.809e-05,2]
[395748625,1764720394448,-500.0,0.00010117,2]
[395748626,1764720394557,-250.0,0.00010196,2]
[395748627,1764720394669,-300.0,0.00010275,2]
[395748628,1764720394778,-1200.0,0.00010275,2]
[395748629,1764720394890,-974.9526,0.00010276,2]
[395748630,1764720396022,-3550.1048,0.00010276,2]
[395748631,1764720396654,-10000.01,0.00010276,2]
[395748633,1764720408560,-4281.8467,0.00010276,2]
[395748634,1764720408721,-1436.3166,0.00010276,2]
[395748635,1764720408927,-250.0,0.00010299,2]
[395748636,1764720409029,-316.2173352,0.00010349,2]
[395748637,1764720409126,-500.0,0.00010355,2]
[395748638,1764720409253,-500.0,0.00010355,2]
[395748639,1764720409357,-500.0,0.00010355,2]
[395748640,1764720409471,-500.0,0.00010355,2]
[395748641,1764720409564,-500.0,0.00010355,2]
[395748642,1764720409660,-500.0,0.00010355,2]
[395748643,1764720409758,-500.0,0.00010355,2]
[395748644,1764720409859,-500.0,0.00010355,2]
[395748645,1764720409958,-367.5753296,0.00010355,2]
[395748646,1764720410370,-132.4246704,0.00010355,2]
[395748647,1764720410467,-500.0,0.00010355,2]
[395748648,1764720410563,-500.0,0.00010355,2]
[395748649,1764720410663,-230.60269194,0.00010355,2]
[395748650,1764720410764,-150.0,0.00010375,2]
[395748651,1764720410866,-1650.30722821,0.00010376,2]
[395748652,1764720410967,-929.18982678,0.00010376,2]
[395748653,1764720411381,-1814.96116534,0.00010376,2]
[395748654,1764720411491,-154.53971988,0.00010376,2]
[395748655,1764720411596,-154.53971988,0.00010376,2]
[395748656,1764720411701,-1000.0,0.00010448,2]
[395748657,1764720411807,-500.0,0.00010449,2]
[395748658,1764720411915,-500.0,0.00010449,2]
[395748659,1764720412026,-500.0,0.00010449,2]
[395748660,1764720412140,-251.9287898,0.00010449,2]
[395748661,1764720412855,-248.0712102,0.00010449,2]
[395748662,1764720413324,-500.0,0.00010449,2]
[395748663,1764720413438,-500.0,0.00010449,2]
[395748664,1764720413558,-500.0,0.00010449,2]
[395748665,1764720413674,-200.0,0.00010449,2]
[395748666,1764720413793,-500.0,0.00010449,2]
[395748667,1764720413909,-500.0,0.00010449,2]
[395748668,1764720414027,-200.0,0.00010449,2]
[395748669,1764720414142,-500.0,0.00010449,2]
[395748670,1764720414257,-500.0,0.00010449,2]
[395748671,1764720414374,-500.0,0.00010449,2]
[395748672,1764720414485,-203.8675796,0.00010449,2]
[395748673,1764720419606,-296.1324204,0.00010449,2]
[395748674,1764720419615,-61.01822956,0.00010449,2]
[395748675,1764720419743,-89.98177044,0.00010449,2]
[395748676,1764720419753,-110.01822956,0.00010449,2]
[395748677,1764720419905,-389.98177044,0.00010449,2]
[395748678,1764720419916,-110.01822956,0.00010449,2]
[395748679,1764720420060,-40.98177044,0.00010449,2]
[395748680,1764720420069,-151.0,0.00010449,2]
[395748681,1764720420079,-241.91108318,0.00010449,2]
[395748682,1764720420088,-66.10714638,0.00010449,2]
[395748683,1764720420226,-84.89285362,0.00010449,2]
[395748684,1764720420236,-151.0,0.00010449,2]
[395748685,1764720420245,-151.0,0.00010449,2]
[395748686,1764720420254,-113.10714638,0.00010449,2]
[395748687,1764720420391,-386.89285362,0.00010449,2]
[395748688,1764720420403,-113.10714638,0.00010449,2]
[395748689,1764720420580,-37.89285362,0.00010449,2]
[395748690,1764720420683,-500.0,0.00010449,2]
[395748691,1764720420794,-151.0,0.00010449,2]
[395748693,1764720420899,-500.0,0.00010449,2]
[395748694,1764720421008,-151.0,0.00010449,2]
[395748695,1764720421114,-151.0,0.00010449,2]
[395748696,1764720421211,-500.0,0.00010449,2]
[395748697,1764720421317,-151.0,0.00010449,2]
[395748698,1764720421423,-500.0,0.00010449,2]
[395748699,1764720421526,-500.0,0.00010449,2]
[395748700,1764720421638,-151.0,0.00010449,2]
[395748701,1764720421744,-500.0,0.00010449,2]
[395748702,1764720421855,-151.0,0.00010449,2]
[395748703,1764720421962,-500.0,0.00010449,2]
[395748704,1764720422071,-151.0,0.00010449,2]
[395748705,1764720422178,-310.22429276,0.00010449,2]
[395748706,1764720422392,-189.77570724,0.00010449,2]
[395748707,1764720422499,-151.0,0.00010449,2]
[395748708,1764720422604,-500.0,0.00010449,2]
[395748709,1764720422714,-500.0,0.00010449,2]
[395748710,1764720422822,-500.0,0.00010449,2]
[395748711,1764720422929,-500.0,0.00010449,2]
[395748712,1764720423037,-200.0,0.00010449,2]
[395748713,1764720423147,-302.0,0.00010454,3]
[395748714,1764720423257,-500.0,0.00010454,2]
[395748715,1764720423369,-500.0,0.00010454,2]
[395748716,1764720423492,-500.0,0.00010454,2]
[395748717,1764720423613,-500.0,0.00010454,2]
[395748718,1764720424441,-500.0,0.00010454,2]
[395748719,1764720424557,-723.6,0.00010454,2]
[395748720,1764720424671,-500.0,0.00010454,2]
[395748721,1764720424793,-500.0,0.00010454,2]
[395748722,1764720424908,-500.0,0.00010454,2]
[395748723,1764720425020,-500.0,0.00010454,2]
[395748724,1764720425134,-559.13,0.00010454,2]
[395748725,1764720425714,-500.0,0.00010454,2]
[395748726,1764720425829,-500.0,0.00010454,2]
[395748727,1764720426026,-500.0,0.00010454,2]
[395748728,1764720426139,-500.0,0.00010454,2]
[395748729,1764720426254,-513.06,0.00010454,2]
[395748730,1764720426367,-500.0,0.00010454,2]
[395748731,1764720426484,-500.0,0.00010454,2]
[395748732,1764720426601,-500.0,0.00010454,2]
[395748733,1764720426713,-500.0,0.00010454,2]
[395748734,1764720426823,-500.0,0.00010454,2]
[395748735,1764720426940,-807.74,0.00010454,2]
[395748736,1764720428956,-358.41,0.00010454,2]
[395748737,1764720429060,-500.0,0.00010454,2]
[395748738,1764720429165,-500.0,0.00010454,2]
[395748739,1764720429278,-500.0,0.00010454,2]
[395748740,1764720429393,-500.0,0.00010454,2]
[395748741,1764720429505,-500.0,0.00010454,2]
[395748742,1764720429614,-500.0,0.00010454,2]
[395748743,1764720429725,-500.0,0.00010454,2]
[395748744,1764720429834,-500.0,0.00010454,2]
[395748745,1764720429939,-500.0,0.00010454,2]
[395748746,1764720433431,-395.80263876,0.00010454,2]
[395748747,1764720433559,-104.19736124,0.00010454,2]
[395748748,1764720433670,-289.93227362,0.00010454,2]
[395748749,1764720433787,-500.0,0.00010454,2]
[395748750,1764720433903,-559.09187935,0.00010454,2]
[395748751,1764720434017,-500.0,0.00010454,2]
[395748752,1764720434133,-500.0,0.00010454,2]
[395748753,1764720434254,-500.0,0.00010454,2]
[395748754,1764720434370,-500.0,0.00010454,2]
[395748755,1764720434482,-500.0,0.00010454,2]
[395748756,1764720434600,-500.0,0.00010454,2]
[395748757,1764720434720,-500.0,0.00010454,2]
[395748758,1764720435400,-500.0,0.00010454,2]
[395748759,1764720435508,-500.0,0.00010454,2]
[395748760,1764720435622,-500.0,0.00010454,2]
[395748761,1764720435730,-500.0,0.00010454,2]
[395748762,1764720435839,-500.0,0.00010454,2]
[395748763,1764720435950,-500.0,0.00010454,2]
[395748764,1764720436056,-754.39,0.00010454,2]
[395748765,1764720436165,-500.0,0.00010454,2]
[395748766,1764720436273,-500.0,0.00010454,2]
[395748767,1764720436728,-500.0,0.00010454,2]
[395748768,1764720436834,-500.0,0.00010454,2]
[395748769,1764720436941,-500.0,0.00010454,2]
[395748770,1764720437061,-500.0,0.00010454,2]
[395748771,1764720437183,-400.46344308,0.00010454,2]
[395748772,1764720437301,-500.0,0.00010454,2]
[395748773,1764720437421,-500.0,0.00010454,2]
[395748774,1764720437524,-355.13920811,0.00010454,2]
[395748775,1764720437623,-491.20755602,0.00010454,2]
[395748776,1764720437735,-500.0,0.00010454,2]
[395748777,1764720437852,-6.38958558,0.00010454,2]
[395748778,1764720438138,-493.61041442,0.00010454,2]
[395748779,1764720438253,-500.0,0.00010454,2]
[395748780,1764720438373,-500.0,0.00010454,2]
[395748781,1764720438492,-500.0,0.00010454,2]
[395748782,1764720438613,-500.0,0.00010454,2]
[395748783,1764720438732,-500.0,0.00010454,2]
[395748784,1764720438853,-500.0,0.00010454,2]
[395748785,1764720439215,-500.0,0.00010454,2]
[395748786,1764720439342,-500.0,0.00010454,2]
[395748787,1764720439467,-500.0,0.00010454,2]
[395748789,1764720444787,-200.0,0.00010449,2]
[395748790,1764720444897,-250.0,0.00010451,2]
[395748791,1764720445014,-500.0,0.00010454,2]
[395748792,1764720445130,-500.0,0.00010454,2]
[395748793,1764720445247,-500.0,0.00010454,2]
[395748794,1764720445363,-500.0,0.00010454,2]
[395748795,1764720445480,-500.0,0.00010454,2]
[395748796,1764720445598,-341.36619341,0.00010454,2]
[395748797,1764720445721,-500.0,0.00010454,2]
[395748798,1764720445840,-500.0,0.00010454,2]
[395748799,1764720445957,-500.0,0.00010454,2]
[395748800,1764720446271,-500.0,0.00010454,2]
[395748801,1764720446390,-500.0,0.00010454,2]
[395748802,1764720446508,-500.0,0.00010454,2]
[395748803,1764720446626,-500.0,0.00010454,2]
[395748804,1764720446742,-500.0,0.00010454,2]
[395748805,1764720446859,-500.0,0.00010454,2]
[395748806,1764720446980,-500.0,0.00010454,2]
[395748807,1764720447110,-500.0,0.00010454,2]
[395748808,1764720447238,-500.0,0.00010454,2]
[395748809,1764720447353,-500.0,0.00010454,2]
[395748810,1764720447554,-500.0,0.00010454,2]
[395748811,1764720447672,-500.0,0.00010454,2]
[395748812,1764720447793,-503.70754462,0.00010454,2]
[395748813,1764720447908,-500.0,0.00010454,2]
[395748814,1764720448007,-559.30109884,0.00010454,2]
[395748815,1764720448117,-500.0,0.00010454,2]
[395748816,1764720448233,-500.0,0.00010454,2]
[395748817,1764720448352,-500.0,0.00010454,2]
[395748818,1764720448475,-500.0,0.00010454,2]
[395748819,1764720448603,-373.99271308,0.00010454,2]
[395748820,1764720452269,-160.25319791,0.00010449,2]
[395748821,1764720454741,-339.74680209,0.00010449,2]
[395748822,1764720454851,-500.0,0.00010449,2]
[395748823,1764720454959,-500.0,0.00010449,2]
[395748824,1764720455065,-500.0,0.00010449,2]
[395748825,1764720455170,-500.0,0.00010449,2]
[395748826,1764720455273,-500.0,0.00010449,2]
[395748827,1764720455380,-500.0,0.00010449,2]
[395748828,1764720455481,-500.0,0.00010449,2]
[395748829,1764720455587,-500.0,0.00010449,2]
[395748830,1764720455696,-500.0,0.00010449,2]
[395748831,1764720459754,-500.0,0.00010449,2]
[395748832,1764720459861,-500.0,0.00010449,2]
[395748833,1764720459966,-500.0,0.00010449,2]
[395748834,1764720460065,-500.0,0.00010449,2]
[395748835,1764720460171,-500.0,0.00010449,2]
[395748836,1764720460273,-500.0,0.00010449,2]
[395748837,1764720460370,-500.0,0.00010449,2]
[395748838,1764720460467,-500.0,0.00010449,2]
[395748839,1764720460582,-500.0,0.00010449,2]
[395748840,1764720460688,-500.0,0.00010449,2]
[395748842,1764720467772,-500.0,0.00010449,2]
[395748843,1764720467873,-500.0,0.00010449,2]
[395748844,1764720467970,-318.65624816,0.00010449,2]
[395748845,1764720468072,-200.0,0.00010449,2]
[395748846,1764720468169,-500.0,0.00010449,2]
[395748847,1764720468271,-151.0,0.00010449,2]
[395748848,1764720468373,-151.0,0.00010449,2]
[395748849,1764720468477,-151.0,0.00010449,2]
[395748850,1764720468587,-151.0,0.00010449,2]
[395748851,1764720468688,-200.0,0.00010449,2]
[395748852,1764720468795,-1045.88240165,0.00010454,3]
[395748853,1764720468906,-126.00728692,0.00010454,2]
[395748854,1764720469020,-500.0,0.00010454,2]
[395748855,1764720469135,-500.0,0.00010454,2]
[395748856,1764720470621,-151.0,0.00010449,2]
[395748857,1764720470648,-0.30632284,0.00010449,2]
[395748858,1764720472563,-150.69367716,0.00010449,2]
[395748859,1764720472669,-151.0,0.00010449,2]
[395748860,1764720472776,-151.0,0.00010449,2]
[395748861,1764720472880,-151.0,0.00010449,2]
[395748862,1764720472981,-151.0,0.00010449,2]
[395748863,1764720473091,-151.0,0.00010449,2]
[395748864,1764720473204,-151.0,0.00010449,2]
[395748865,1764720473318,-153.31169046,0.00010454,2]
[395748866,1764720473431,-373.67328832,0.00010454,2]
[395748867,1764720473562,-500.0,0.00010454,2]
[395748868,1764720473690,-500.0,0.00010454,2]
[395748869,1764720473814,-500.0,0.00010454,2]
[395748870,1764720473941,-500.0,0.00010454,2]
[395748871,1764720474067,-500.0,0.00010454,2]
[395748872,1764720474186,-500.0,0.00010454,2]
[395748873,1764720474319,-332.65268812,0.00010454,2]
[395748874,1764720478281,-151.0,0.00010449,2]
[395748875,1764720478399,-500.0,0.00010454,2]
[395748876,1764720478514,-565.09,0.00010454,2]
[395748877,1764720479285,-500.0,0.00010454,2]
[395748878,1764720483504,-176.51886764,0.00010454,2]
[395748879,1764720485644,-323.48113236,0.00010454,2]
[395748880,1764720485654,-10.43246111,0.00010455,2]
[395748881,1764720485776,-500.0,0.00010455,2]
[395748882,1764720485891,-500.0,0.00010455,2]
[395748883,1764720486005,-500.0,0.00010455,2]
[395748884,1764720486143,-500.0,0.00010455,2]
[395748885,1764720486575,-1200.0,0.00010453,2]
[395748886,1764720487305,-16.09,0.00010455,2]
[395748887,1764720487409,-7567.83,0.00010455,2]
[395748888,1764720487504,-10000.01,0.00010455,2]
[395748889,1764720487599,-10000.01,0.00010455,2]
[395748890,1764720487767,-10000.01,0.00010455,2]
[395748891,1764720487878,-10000.01,0.00010455,2]
[395748892,1764720487974,-10000.01,0.00010455,2]
[395748893,1764720488082,-10000.01,0.00010455,2]
[395748894,1764720488185,-10000.01,0.00010455,2]
[395748895,1764720488303,-10000.01,0.00010455,2]
[395748896,1764720488417,-10000.01,0.00010455,2]
[395748898,1764720488522,-500.0,0.00010455,2]
[395748899,1764720488630,-9000.01,0.00010455,2]
[395748900,1764720488761,-10000.01,0.00010455,2]
[395748901,1764720488867,-10000.01,0.00010455,2]
[395748902,1764720489025,-10000.01,0.00010455,2]
[395748903,1764720489248,-10000.01,0.00010455,2]
[395748904,1764720490731,-197.72849375,0.00010454,2]
[395748905,1764720490856,-302.27150625,0.00010454,2]
[395748906,1764720490865,-500.0,0.00010454,2]
[395748907,1764720490874,-397.72849375,0.00010455,2]
[395748908,1764720490979,-7600.01,0.00010455,2]
[395748909,1764720491092,-10000.01,0.00010455,2]
[395748910,1764720491194,-10000.01,0.00010455,2]
[395748911,1764720491291,-10000.01,0.00010455,2]
[395748912,1764720491406,-10000.01,0.00010455,2]
[395748913,1764720491524,-10000.01,0.00010455,2]
[395748914,1764720491619,-10000.01,0.00010455,2]
[395748915,1764720491816,-10000.01,0.00010455,2]
[395748916,1764720491962,-10000.01,0.00010455,2]
[395748917,1764720492220,-10000.01,0.00010455,2]
[395748918,1764720492996,-10000.01,0.00010455,2]
[395748919,1764720493106,-10000.01,0.00010455,2]
[395748920,1764720493320,-10000.01,0.00010455,2]
[395748921,1764720493417,-10000.01,0.00010455,2]
[395748922,1764720493516,-10000.01,0.00010455,2]
[395748926,1764720582606,-980.0,0.00010214,2]
[395748927,1764720603857,-20.0,0.00010214,2]
[395748928,1764720604003,-300.0,0.00010353,2]
[395748929,1764720604169,-300.0,0.00010353,2]
[395748930,1764720604327,-1200.0,0.00010353,2]
[395748931,1764720604478,-150.0,0.00010354,2]
[395748932,1764720604643,-500.0,0.00010354,2]
[395748933,1764720604822,-500.0,0.00010354,2]
[395748934,1764720604987,-500.0,0.00010354,2]
[395748935,1764720605160,-500.0,0.00010354,2]
[395748936,1764720605331,-500.0,0.00010354,2]
[395748937,1764720605502,-500.0,0.00010354,2]
[395748938,1764720606463,-500.0,0.00010354,2]
[395748939,1764720606627,-500.0,0.00010354,2]
[395748940,1764720606789,-500.0,0.00010354,2]
[395748941,1764720606953,-217.89664332,0.00010354,2]
[395748942,1764720607129,-500.0,0.00010354,2]
[395748943,1764720607301,-500.0,0.00010354,2]
[395748944,1764720607463,-500.0,0.00010354,2]
[395748945,1764720607635,-500.0,0.00010354,2]
[395748946,1764720607810,-500.0,0.00010354,2]